[Event "DVM U10 2024"]
[Site "Duesseldorf"]
[Date "2024.12.27"]
[Round "1"]
[White "Holzhäuser, Thibaut Lautaro"]
[Black "Teletskyi, Andrii"]
[Result "1/2-1/2"]
[ECO "C55"]
[WhiteElo "955"]
[BlackElo "787"]
[Annotator "NA RC"]
[PlyCount "91"]
[EventDate "2024.12.23"]
[EventType "team-tourn"]
[EventRounds "7"]
[EventCountry "GER"]
[SourceTitle "playchess.com"]
[Source "ChessBase"]
[SourceQuality "1"]
[TimeControl "3300+5"]

1. e4 {[%emt 0:00:02]} e5 {[%emt 0:00:07]} 2. Nf3 {[%emt 0:00:09]} Nc6 {[%emt 0:00:02]} 3. Bc4 {[%emt 0:00:10]} Be7 {[%emt 0:00:19]} 4. Nc3 {[%emt 0:00:16]} Nf6 {[%emt 0:00:31]} 5. d3 {[%emt 0:00:10]} d6 {[%emt 0:00:38]} 6. h3 {[%emt 0:00:09]} Be6 {[%emt 0:00:17]} 7. Bb3 {[%emt 0:00:38]} O-O {[%emt 0:00:36]} 8. Be3 {[%emt 0:00:06]} d5 {[%emt 0:01:25]} 9. exd5 {[%emt 0:00:41]} Nxd5 {[%emt 0:00:11]} 10. Nxd5 {[%emt 0:00:16]} Bxd5 {[%emt 0:00:14]} 11. O-O {[%emt 0:00:19]} Bxb3 {[%emt 0:01:02]} 12. axb3 {[%emt 0:00:12]} a6 {[%emt 0:00:16]} 13. c3 {[%emt 0:01:39]} Re8 {[%emt 0:00:36]} 14. Qc2 {[%emt 0:00:59]} Bf6 {[%emt 0:01:05]} 15. Rad1 {[%emt 0:00:42]} Qe7 {[%emt 0:01:31]} 16. d4 {[%emt 0:02:33]} e4 {[%emt 0:00:48]} 17. Nd2 {[%emt 0:00:14]} Rad8 {[%emt 0:01:05]} 18. Rfe1 {[%emt 0:00:29]} h6 {[%emt 0:03:20]} 19. Bf4 {[%emt 0:01:31]} Bg5 {[%emt 0:04:19]} 20. Rxe4 {[%emt 0:02:32]} Qd7 {[%emt 0:01:12]} 21. Bxg5 {[%emt 0:01:09]} hxg5 {[%emt 0:00:18]} 22. Rde1 {[%emt 0:01:30]} a5 {[%emt 0:02:47]} 23. Rxe8+ {[%emt 0:00:26]} Rxe8 {[%emt 0:00:08]} 24. Rxe8+ {[%emt 0:00:05]} Qxe8 {[%emt 0:00:04]} 25. Qe4 {[%emt 0:00:15]} Qxe4 {[%emt 0:00:53]} 26. Nxe4 {[%emt 0:00:11]} f6 {[%emt 0:00:09]} 27. Kf1 {[%emt 0:00:08]} Kf7 {[%emt 0:00:02]} 28. Ke2 {[%emt 0:00:09]} Ke6 {[%emt 0:00:34]} 29. Kd3 {[%emt 0:00:19]} b5 {[%emt 0:00:29]} 30. c4 {[%emt 0:00:34]} bxc4+ 31. bxc4 {[%emt 0:00:08]} Nb4+ {[%emt 0:00:51]} 32. Ke3 {[%emt 0:01:06]} Nc2+ {[%emt 0:01:10]} 33. Kd3 {[%emt 0:00:32]} Ne1+ {[%emt 0:00:11]} 34. Kc3 {[%emt 0:00:17]} Nxg2 {[%emt 0:00:17]} 35. d5+ {[%emt 0:06:09]} Ke5 {[%emt 0:00:15]} 36. Kd3 {[%emt 0:00:28]} Nf4+ {[%emt 0:00:09]} 37. Ke3 {[%emt 0:00:31]} Nxh3 {[%emt 0:00:08]} 38. f3 {[%emt 0:00:02]} Nf4 {[%emt 0:01:13]} 39. b3 {[%emt 0:01:09]} Nxd5+ {[%emt 0:05:47]} 40. cxd5 {[%emt 0:00:16]} Kxd5 {[%emt 0:00:05]} 41. Kd3 {[%emt 0:01:37]} Ke5 {[%emt 0:00:34]} 42. Ke3 {[%emt 0:00:27]} Kf5 {[%emt 0:02:47]} 43. Ng3+ {[%emt 0:00:11]} Ke5 {[%emt 0:01:44]} 44. Ne4 {[%emt 0:00:20]} Kd5 {[%emt 0:00:31]} 45. Kd3 {[%emt 0:00:12]} Ke5 {[%emt 0:01:30]} 46. Ke3 {[%emt 0:00:08]} 1/2-1/2

[Event "DVM U10 2024"]
[Site "Duesseldorf"]
[Date "2024.12.27"]
[Round "1"]
[White "Tong, Minh Huy"]
[Black "Schmidt, Fabian"]
[Result "0-1"]
[ECO "C84"]
[WhiteElo "943"]
[BlackElo "1971"]
[Annotator "RC"]
[PlyCount "56"]
[EventDate "2024.12.23"]
[EventType "team-tourn"]
[EventRounds "7"]
[EventCountry "GER"]
[SourceTitle "playchess.com"]
[Source "ChessBase"]
[SourceQuality "1"]
[TimeControl "3300+5"]

1. e4 {[%emt 0:00:01]} e5 {[%emt 0:00:01]} 2. Nf3 {[%emt 0:00:01]} Nc6 {[%emt 0:00:03]} 3. Bb5 {[%emt 0:00:19]} a6 {[%emt 0:00:07]} 4. Ba4 {[%emt 0:00:01]} Nf6 {[%emt 0:00:10]} 5. d4 {[%emt 0:00:24]} exd4 {[%emt 0:01:14]} 6. O-O {[%emt 0:00:09]} Be7 {[%emt 0:02:56]} 7. c3 {[%emt 0:01:03]} Nxe4 {[%emt 0:00:21]} 8. Re1 {[%emt 0:00:45]} Nf6 {[%emt 0:00:13]} 9. Bf4 {[%emt 0:07:45]} dxc3 {[%emt 0:01:54]} 10. Nxc3 {[%emt 0:00:11]} O-O {[%emt 0:00:17]} 11. Ne5 {[%emt 0:16:20]} Nxe5 {[%emt 0:00:28]} 12. Bxe5 {[%emt 0:00:56]} d6 {[%emt 0:00:11]} 13. Bf4 {[%emt 0:00:10]} Bg4 {[%emt 0:01:01]} 14. f3 {[%emt 0:00:51]} Bf5 {[%emt 0:00:11]} 15. Bc2 {[%emt 0:01:35]} Bxc2 {[%emt 0:01:17]} 16. Qxc2 {[%emt 0:00:09]} Re8 {[%emt 0:00:07]} 17. Qf2 {[%emt 0:03:26]} Qd7 {[%emt 0:00:57]} 18. Qg3 {[%emt 0:03:42]} Nh5 {[%emt 0:00:14]} 19. Qf2 {[%emt 0:06:10]} Nxf4 {[%emt 0:00:08]} 20. Qd4 {[%emt 0:00:06]} Ne6 {[%emt 0:00:11]} 21. Qg4 {[%emt 0:01:58]} Bf6 {[%emt 0:00:31]} 22. Nd5 {[%emt 0:00:22]} Bxb2 {[%emt 0:00:26]} 23. Rab1 {[%emt 0:02:11]} Bd4+ {[%emt 0:00:18]} 24. Kf1 {[%emt 0:02:16]} Kh8 {[%emt 0:01:02]} 25. Rxb7 {[%emt 0:01:11]} Qc6 {[%emt 0:00:45]} 26. Nxc7 {[%emt 0:03:56]} Nxc7 {[%emt 0:01:28]} 27. Rxe8+ {[%emt 0:00:02]} Rxe8 {[%emt 0:00:24]} 28. Rb1 {[%emt 0:00:12]} Qc4# {[%emt 0:00:15]} 0-1

[Event "DVM U10 2024"]
[Site "Duesseldorf"]
[Date "2024.12.27"]
[Round "1"]
[White "Najjar, Anton"]
[Black "Lankenau, Matteo Joel"]
[Result "0-1"]
[ECO "B22"]
[WhiteElo "933"]
[BlackElo "1011"]
[Annotator "NA RC"]
[PlyCount "86"]
[EventDate "2024.12.23"]
[EventType "team-tourn"]
[EventRounds "7"]
[EventCountry "GER"]
[SourceTitle "playchess.com"]
[Source "ChessBase"]
[SourceQuality "1"]
[TimeControl "3300+5"]

1. e4 {[%emt 0:00:02]} c5 {[%emt 0:00:00]} 2. c3 {[%emt 0:00:10]} a6 {[%emt 0:00:16]} 3. d4 {[%emt 0:00:04]} cxd4 {[%emt 0:00:14]} 4. cxd4 {[%emt 0:00:09]} Nf6 {[%emt 0:00:14]} 5. Nc3 {[%emt 0:00:04]} d6 {[%emt 0:00:13]} 6. Nf3 {[%emt 0:00:08]} e6 {[%emt 0:00:46]} 7. Bc4 {[%emt 0:00:02]} Bd7 {[%emt 0:00:19]} 8. O-O {[%emt 0:00:09]} Be7 {[%emt 0:00:06]} 9. Re1 {[%emt 0:00:09]} O-O {[%emt 0:00:10]} 10. e5 {[%emt 0:00:02]} dxe5 {[%emt 0:00:23]} 11. dxe5 {[%emt 0:00:20]} Ne8 {[%emt 0:01:17]} 12. Be3 {[%emt 0:01:00]} Nc7 {[%emt 0:01:13]} 13. Bb6 {[%emt 0:00:46]} Bb5 {[%emt 0:03:06]} 14. Nxb5 {[%emt 0:00:33]} Qxd1 {[%emt 0:00:20]} 15. Raxd1 {[%emt 0:01:14]} Nxb5 {[%emt 0:00:23]} 16. Bxb5 {[%emt 0:00:22]} axb5 {[%emt 0:00:08]} 17. a3 {[%emt 0:00:50]} Nc6 {[%emt 0:00:29]} 18. Rd7 {[%emt 0:00:48]} Rab8 {[%emt 0:01:25]} 19. Nd4 {[%emt 0:01:03]} b4 {[%emt 0:03:20]} 20. Nxc6 {[%emt 0:00:14]} bxc6 {[%emt 0:00:21]} 21. Bc7 {[%emt 0:00:14]} Rbe8 {[%emt 0:01:08]} 22. Rxe7 {[%emt 0:00:50]} Rxe7 {[%emt 0:00:20]} 23. Bd6 {[%emt 0:00:01]} Rb7 {[%emt 0:00:51]} 24. Bxf8 {[%emt 0:00:11]} Kxf8 {[%emt 0:00:12]} 25. axb4 {[%emt 0:00:14]} Rxb4 {[%emt 0:00:16]} 26. Rb1 {[%emt 0:00:31]} Ke7 {[%emt 0:00:24]} 27. Kf1 {[%emt 0:00:26]} Rb5 {[%emt 0:00:18]} 28. f4 {[%emt 0:00:15]} f6 {[%emt 0:00:38]} 29. exf6+ {[%emt 0:00:05]} Kxf6 {[%emt 0:00:16]} 30. g3 {[%emt 0:00:29]} e5 {[%emt 0:00:17]} 31. fxe5+ {[%emt 0:00:23]} Kxe5 {[%emt 0:00:16]} 32. Rc1 {[%emt 0:00:21]} c5 {[%emt 0:00:15]} 33. Re1+ {[%emt 0:00:15]} Kf6 {[%emt 0:00:35]} 34. Rb1 g5 {[%emt 0:00:12]} 35. Kg2 {[%emt 0:00:34]} h5 {[%emt 0:00:26]} 36. h4 {[%emt 0:00:04]} gxh4 {[%emt 0:00:19]} 37. gxh4 {[%emt 0:00:15]} Kf5 {[%emt 0:00:55]} 38. Kf3 {[%emt 0:00:00]} Rb3+ {[%emt 0:00:20]} 39. Kg2 {[%emt 0:00:19]} Kg4 {[%emt 0:00:20]} 40. Rg1 {[%emt 0:01:06]} Rxb2+ {[%emt 0:00:24]} 41. Kf1+ {[%emt 0:00:17]} Kxh4 {[%emt 0:00:18]} 42. Rh1+ {[%emt 0:00:51]} Kg5 {[%emt 0:00:17]} 43. Rg1+ {[%emt 0:00:21]} Kh6 {[%emt 0:00:14]} 0-1

[Event "DVM U10 2024"]
[Site "Duesseldorf"]
[Date "2024.12.27"]
[Round "1"]
[White "Odbayar, Ekhbayar"]
[Black "Torgoev, Timur"]
[Result "1-0"]
[ECO "C68"]
[WhiteElo "864"]
[BlackElo "1153"]
[Annotator "NA RC"]
[PlyCount "113"]
[EventDate "2024.12.23"]
[EventType "team-tourn"]
[EventRounds "7"]
[EventCountry "GER"]
[SourceTitle "playchess.com"]
[Source "ChessBase"]
[SourceQuality "1"]
[TimeControl "3300+5"]

1. e4 {[%emt 0:00:02]} e5 {[%emt 0:00:08]} 2. Nf3 {[%emt 0:00:09]} Nc6 {[%emt 0:00:12]} 3. Bb5 {[%emt 0:00:13]} a6 {[%emt 0:00:44]} 4. Bxc6 {[%emt 0:00:09]} dxc6 {[%emt 0:00:07]} 5. Nxe5 {[%emt 0:00:06]} Qg5 {[%emt 0:00:49]} 6. Nf3 {[%emt 0:00:40]} Qxg2 {[%emt 0:00:27]} 7. Rg1 {[%emt 0:00:41]} Qh3 {[%emt 0:00:44]} 8. Rg3 {[%emt 0:01:10]} Qe6 {[%emt 0:00:59]} 9. d3 {[%emt 0:00:27]} g6 {[%emt 0:01:57]} 10. Bf4 {[%emt 0:00:51]} Bd6 {[%emt 0:00:27]} 11. Bxd6 {[%emt 0:00:44]} Qxd6 {[%emt 0:00:09]} 12. e5 {[%emt 0:00:38]} Qe7 {[%emt 0:01:37]} 13. d4 {[%emt 0:00:36]} Nf6 {[%emt 0:00:45]} 14. Qe2 {[%emt 0:00:40]} Ng4 {[%emt 0:00:55]} 15. Nc3 {[%emt 0:00:38]} O-O {[%emt 0:01:05]} 16. d5 {[%emt 0:00:25]} f6 {[%emt 0:01:25]} 17. exf6 {[%emt 0:00:47]} Qxe2+ {[%emt 0:00:17]} 18. Nxe2 {[%emt 0:00:27]} cxd5 {[%emt 0:00:21]} 19. Rd1 {[%emt 0:01:48]} Nxf6 {[%emt 0:00:25]} 20. Nc3 {[%emt 0:01:07]} Re8+ {[%emt 0:00:21]} 21. Kf1 {[%emt 0:00:30]} Ne4 {[%emt 0:00:49]} 22. Nxe4 {[%emt 0:00:19]} dxe4 {[%emt 0:00:11]} 23. Nd4 {[%emt 0:00:43]} Bf5 {[%emt 0:00:27]} 24. Nxf5 {[%emt 0:00:26]} Kf7 {[%emt 0:00:13]} 25. Nh6+ {[%emt 0:00:25]} Kf6 {[%emt 0:00:49]} 26. Rd7 {[%emt 0:00:40]} Rac8 {[%emt 0:01:17]} 27. Rxh7 {[%emt 0:00:52]} Rf8 {[%emt 0:00:33]} 28. Ng4+ {[%emt 0:01:04]} Kf5 {[%emt 0:00:18]} 29. Ne3+ {[%emt 0:00:32]} Ke5 {[%emt 0:01:05]} 30. Rxg6 {[%emt 0:00:18]} Kd4 {[%emt 0:00:56]} 31. Rd7+ {[%emt 0:00:24]} Ke5 {[%emt 0:00:18]} 32. Rgg7 {[%emt 0:01:01]} Rfd8 {[%emt 0:00:44]} 33. Rxd8 {[%emt 0:00:27]} Rxd8 {[%emt 0:00:07]} 34. Rxc7 {[%emt 0:00:09]} b5 {[%emt 0:00:13]} 35. Ra7 {[%emt 0:00:07]} Rd6 {[%emt 0:00:25]} 36. c4 {[%emt 0:00:15]} Rc6 {[%emt 0:00:47]} 37. cxb5 {[%emt 0:00:20]} axb5 {[%emt 0:00:14]} 38. Ke2 {[%emt 0:00:10]} b4 {[%emt 0:01:12]} 39. Ra4 {[%emt 0:00:11]} Rh6 {[%emt 0:00:53]} 40. Ng4+ {[%emt 0:00:09]} Kf4 {[%emt 0:00:16]} 41. Nxh6 {[%emt 0:00:06]} b3 {[%emt 0:00:32]} 42. axb3 {[%emt 0:00:03]} Ke5 {[%emt 0:00:18]} 43. b4 {[%emt 0:00:04]} Kd5 {[%emt 0:00:19]} 44. b5 {[%emt 0:00:03]} Kc5 {[%emt 0:00:16]} 45. Rxe4 {[%emt 0:00:03]} Kxb5 {[%emt 0:00:14]} 46. f4 {[%emt 0:00:01]} Kc6 {[%emt 0:00:14]} 47. f5 {[%emt 0:00:02]} Kd7 {[%emt 0:00:10]} 48. f6 {[%emt 0:00:01]} Kd8 {[%emt 0:01:09]} 49. f7 {[%emt 0:00:02]} Kd7 {[%emt 0:00:09]} 50. f8=Q {[%emt 0:00:01]} Kc7 {[%emt 0:00:13]} 51. Re7+ {[%emt 0:00:26]} Kc6 {[%emt 0:00:00]} 52. Qf6+ {[%emt 0:00:13]} Kd5 {[%emt 0:00:09]} 53. Re5+ {[%emt 0:00:00]} Kc4 {[%emt 0:00:15]} 54. Qf4+ {[%emt 0:00:00]} Kb3 {[%emt 0:00:20]} 55. Re3+ {[%emt 0:00:03]} Kxb2 {[%emt 0:00:13]} 56. Qb4+ {[%emt 0:00:03]} Ka1 {[%emt 0:00:16]} 57. Ra3# {[%emt 0:00:02]} 1-0

[Event "DVM U10 2024"]
[Site "Duesseldorf"]
[Date "2024.12.27"]
[Round "1"]
[White "Sachse, Alina"]
[Black "Haberger, Nino"]
[Result "0-1"]
[ECO "C00"]
[WhiteElo "848"]
[BlackElo "1098"]
[Annotator "NA RC"]
[PlyCount "96"]
[EventDate "2024.12.23"]
[EventType "team-tourn"]
[EventRounds "7"]
[EventCountry "GER"]
[SourceTitle "playchess.com"]
[Source "ChessBase"]
[SourceQuality "1"]
[TimeControl "3300+5"]

1. e4 {[%emt 0:00:04]} e6 {[%emt 0:00:02]} 2. Bc4 {[%emt 0:00:13]} d5 {[%emt 0:00:06]} 3. Bd3 {[%emt 0:00:14]} Bc5 {[%emt 0:00:15]} 4. f4 {[%emt 0:00:12]} Nc6 {[%emt 0:00:21]} 5. Nf3 {[%emt 0:00:10]} Bd7 {[%emt 0:00:19]} 6. Nc3 {[%emt 0:00:09]} Nge7 {[%emt 0:00:11]} 7. Be2 {[%emt 0:00:12]} O-O {[%emt 0:00:23]} 8. d3 {[%emt 0:00:09]} Re8 {[%emt 0:00:26]} 9. d4 {[%emt 0:00:33]} Bb4 {[%emt 0:00:23]} 10. Bd2 {[%emt 0:00:26]} a6 {[%emt 0:00:19]} 11. Bd3 {[%emt 0:00:52]} Ng6 {[%emt 0:00:45]} 12. Qe2 {[%emt 0:00:24]} b5 {[%emt 0:00:36]} 13. f5 {[%emt 0:00:42]} exf5 {[%emt 0:00:16]} 14. O-O-O {[%emt 0:01:45]} fxe4 {[%emt 0:00:11]} 15. Bxe4 {[%emt 0:00:18]} dxe4 {[%emt 0:00:20]} 16. Nxe4 {[%emt 0:00:11]} Bxd2+ {[%emt 0:00:11]} 17. Qxd2 {[%emt 0:00:12]} Rxe4 {[%emt 0:00:14]} 18. Qd3 {[%emt 0:00:20]} Re8 {[%emt 0:00:19]} 19. Qb3 {[%emt 0:01:13]} h6 {[%emt 0:00:53]} 20. Rhf1 {[%emt 0:01:04]} Na5 {[%emt 0:00:40]} 21. Qd5 {[%emt 0:00:29]} Be6 {[%emt 0:00:27]} 22. Qe4 {[%emt 0:00:27]} Bxa2 {[%emt 0:00:50]} 23. Qf5 {[%emt 0:00:33]} Be6 {[%emt 0:00:15]} 24. Qd3 {[%emt 0:00:55]} Nc4 {[%emt 0:00:33]} 25. Rde1 {[%emt 0:01:39]} Nf4 {[%emt 0:00:27]} 26. Qe4 {[%emt 0:00:34]} Ng6 {[%emt 0:00:26]} 27. Ne5 {[%emt 0:01:41]} Ngxe5 {[%emt 0:00:15]} 28. dxe5 {[%emt 0:00:12]} Qd2+ {[%emt 0:00:15]} 29. Kb1 {[%emt 0:00:23]} Qb4 {[%emt 0:00:28]} 30. Kc1 {[%emt 0:00:25]} Qxb2+ {[%emt 0:00:12]} 31. Kd1 {[%emt 0:00:17]} Rad8+ {[%emt 0:00:14]} 32. Ke2 {[%emt 0:00:15]} Rd2+ {[%emt 0:00:16]} 33. Kf3 {[%emt 0:00:14]} Qc3+ {[%emt 0:00:13]} 34. Kf4 {[%emt 0:00:59]} Rd4 {[%emt 0:00:19]} 35. Re3 {[%emt 0:01:57]} Rxe4+ {[%emt 0:00:13]} 36. Rxe4 {[%emt 0:00:07]} Qxc2 {[%emt 0:00:16]} 37. Rf3 {[%emt 0:01:16]} Bd5 {[%emt 0:00:23]} 38. Ree3 {[%emt 0:01:24]} Bxf3 {[%emt 0:00:14]} 39. Rxf3 {[%emt 0:00:14]} Rxe5 {[%emt 0:00:15]} 40. Kg4 {[%emt 0:01:02]} Qg6+ {[%emt 0:00:32]} 41. Kf4 {[%emt 0:00:25]} Rf5+ {[%emt 0:00:13]} 42. Ke4 {[%emt 0:00:26]} Rxf3+ {[%emt 0:00:09]} 43. Kxf3 {[%emt 0:00:17]} b4 {[%emt 0:00:11]} 44. Ke2 {[%emt 0:01:18]} Qf5 {[%emt 0:00:17]} 45. Kd1 {[%emt 0:01:01]} Qe4 {[%emt 0:00:05]} 46. Kc1 Qd3 {[%emt 0:00:05]} 47. h3 {[%emt 0:00:10]} b3 {[%emt 0:00:05]} 48. g3 {[%emt 0:00:05]} Qc2# {[%emt 0:00:05]} 0-1

[Event "DVM U10 2024"]
[Site "Duesseldorf"]
[Date "2024.12.27"]
[Round "1"]
[White "Nordmann, Vigo"]
[Black "Thotli, Jathin Krishna"]
[Result "0-1"]
[ECO "C55"]
[WhiteElo "831"]
[BlackElo "1422"]
[Annotator "NA RC"]
[PlyCount "32"]
[EventDate "2024.12.23"]
[EventType "team-tourn"]
[EventRounds "7"]
[EventCountry "GER"]
[SourceTitle "playchess.com"]
[Source "ChessBase"]
[SourceQuality "1"]
[TimeControl "3300+5"]

1. e4 {[%emt 0:00:07]} e5 {[%emt 0:00:03]} 2. Nf3 {[%emt 0:00:14]} Nc6 {[%emt 0:00:03]} 3. Nc3 {[%emt 0:00:17]} Bc5 {[%emt 0:00:05]} 4. Bc4 {[%emt 0:00:17]} Nf6 {[%emt 0:00:07]} 5. Ng5 {[%emt 0:00:11]} O-O {[%emt 0:00:33]} 6. O-O {[%emt 0:00:30]} d6 {[%emt 0:00:09]} 7. d3 {[%emt 0:00:30]} h6 {[%emt 0:00:10]} 8. Nf3 {[%emt 0:00:33]} Bg4 {[%emt 0:00:24]} 9. Qe2 {[%emt 0:00:37]} Nd4 {[%emt 0:00:01]} 10. Qd1 {[%emt 0:00:54]} Nxf3+ {[%emt 0:00:04]} 11. gxf3 {[%emt 0:00:15]} Bh3 {[%emt 0:00:10]} 12. Re1 {[%emt 0:00:42]} Nh5 {[%emt 0:00:03]} 13. b3 {[%emt 0:01:08]} Qh4 {[%emt 0:01:03]} 14. Be3 {[%emt 0:01:07]} Bxe3 {[%emt 0:00:04]} 15. Rxe3 {[%emt 0:00:18]} Qg5+ {[%emt 0:00:08]} 16. Kh1 {[%emt 0:00:59]} Qg2# {[%emt 0:00:13]} 0-1

[Event "DVM U10 2024"]
[Site "Duesseldorf"]
[Date "2024.12.27"]
[Round "1"]
[White "Vogel, Alexander"]
[Black "Glaser-Gallion, Leonas"]
[Result "1-0"]
[ECO "D06"]
[WhiteElo "787"]
[BlackElo "1000"]
[Annotator "NA RC"]
[PlyCount "101"]
[EventDate "2024.12.23"]
[EventType "team-tourn"]
[EventRounds "7"]
[EventCountry "GER"]
[SourceTitle "playchess.com"]
[Source "ChessBase"]
[SourceQuality "1"]
[TimeControl "3300+5"]

1. d4 {[%emt 0:00:02]} d5 {[%emt 0:00:28]} 2. c4 {[%emt 0:00:12]} Nf6 {[%emt 0:00:24]} 3. cxd5 {[%emt 0:00:10]} Nxd5 {[%emt 0:00:02]} 4. e4 {[%emt 0:00:14]} Nb6 {[%emt 0:00:11]} 5. Nc3 {[%emt 0:00:18]} e5 {[%emt 0:00:26]} 6. d5 {[%emt 0:00:38]} Bb4 {[%emt 0:00:12]} 7. Nf3 {[%emt 0:00:36]} Bg4 {[%emt 0:00:27]} 8. Be2 {[%emt 0:00:24]} Na4 {[%emt 0:00:41]} 9. Qxa4+ {[%emt 0:00:45]} c6 {[%emt 0:00:16]} 10. Qxb4 {[%emt 0:00:11]} cxd5 {[%emt 0:00:23]} 11. Nxd5 {[%emt 0:00:26]} Nc6 {[%emt 0:00:27]} 12. Qxb7 {[%emt 0:00:26]} Rc8 {[%emt 0:00:25]} 13. Bb5 {[%emt 0:00:38]} Qd6 {[%emt 0:01:22]} 14. Qxc8+ {[%emt 0:00:22]} Bxc8 {[%emt 0:00:07]} 15. Bxc6+ {[%emt 0:00:21]} Qxc6 {[%emt 0:00:20]} 16. Nxe5 {[%emt 0:00:19]} Qc5 {[%emt 0:02:21]} 17. Be3 {[%emt 0:00:44]} Qa5+ {[%emt 0:00:36]} 18. Bd2 {[%emt 0:00:20]} Qb5 {[%emt 0:00:23]} 19. Nc7+ {[%emt 0:00:10]} Ke7 {[%emt 0:00:11]} 20. Nxb5 {[%emt 0:00:08]} Re8 {[%emt 0:00:45]} 21. O-O {[%emt 0:00:15]} Ba6 {[%emt 0:00:12]} 22. a4 {[%emt 0:00:13]} Kf8 {[%emt 0:00:18]} 23. Bb4+ {[%emt 0:00:28]} Kg8 {[%emt 0:00:15]} 24. Nf3 {[%emt 0:00:27]} h6 {[%emt 0:02:10]} 25. Rfe1 {[%emt 0:00:09]} Rb8 {[%emt 0:01:56]} 26. Nc7 {[%emt 0:00:46]} Bc4 {[%emt 0:02:05]} 27. Bc3 {[%emt 0:00:39]} Rc8 {[%emt 0:01:17]} 28. Nd5 {[%emt 0:00:13]} Rd8 {[%emt 0:01:40]} 29. Red1 {[%emt 0:00:13]} Bb3 {[%emt 0:00:45]} 30. Ne7+ {[%emt 0:00:16]} Kh7 {[%emt 0:00:12]} 31. Rxd8 {[%emt 0:00:08]} Be6 {[%emt 0:00:38]} 32. Rd6 {[%emt 0:01:12]} a5 {[%emt 0:00:16]} 33. Rxe6 {[%emt 0:00:08]} fxe6 {[%emt 0:00:10]} 34. Bxa5 {[%emt 0:00:12]} e5 {[%emt 0:00:09]} 35. b4 {[%emt 0:00:02]} g5 {[%emt 0:00:10]} 36. Nxg5+ {[%emt 0:00:05]} hxg5 {[%emt 0:00:05]} 37. Ng6 {[%emt 0:00:15]} g4 {[%emt 0:00:10]} 38. b5 {[%emt 0:00:08]} g3 {[%emt 0:00:08]} 39. b6 {[%emt 0:00:50]} gxh2+ {[%emt 0:00:09]} 40. Kxh2 {[%emt 0:00:10]} Kh6 {[%emt 0:00:25]} 41. b7 {[%emt 0:00:10]} Kh5 {[%emt 0:00:20]} 42. b8=Q {[%emt 0:00:33]} Kg4 {[%emt 0:00:22]} 43. f3+ {[%emt 0:00:22]} Kh5 {[%emt 0:00:19]} 44. Qxe5+ {[%emt 0:00:21]} Kh6 {[%emt 0:00:15]} 45. Rc1 {[%emt 0:00:16]} Kh7 {[%emt 0:00:17]} 46. Rc7+ {[%emt 0:00:42]} Kh6 {[%emt 0:00:09]} 47. Bd2+ {[%emt 0:00:14]} Kxg6 {[%emt 0:00:10]} 48. Rc6+ {[%emt 0:00:13]} Kf7 {[%emt 0:00:09]} 49. Qc7+ {[%emt 0:00:18]} Ke8 {[%emt 0:00:12]} 50. Rb6 {[%emt 0:00:15]} Kf8 {[%emt 0:00:09]} 51. Rb8# {[%emt 0:00:07]} 1-0

[Event "DVM U10 2024"]
[Site "Duesseldorf"]
[Date "2024.12.27"]
[Round "1"]
[White "Baasch, Julius"]
[Black "Gerigk, Maximilian"]
[Result "1/2-1/2"]
[ECO "C50"]
[WhiteElo "774"]
[BlackElo "823"]
[Annotator "NA RC"]
[PlyCount "91"]
[EventDate "2024.12.23"]
[EventType "team-tourn"]
[EventRounds "7"]
[EventCountry "GER"]
[SourceTitle "playchess.com"]
[Source "ChessBase"]
[SourceQuality "1"]
[TimeControl "3300+5"]

1. e4 {[%emt 0:00:07]} e5 {[%emt 0:00:10]} 2. Nf3 {[%emt 0:00:05]} Nc6 {[%emt 0:00:10]} 3. Bc4 {[%emt 0:00:15]} Nf6 {[%emt 0:00:46]} 4. Nc3 {[%emt 0:00:15]} Bc5 {[%emt 0:00:38]} 5. d3 {[%emt 0:00:17]} d6 {[%emt 0:00:16]} 6. O-O {[%emt 0:00:40]} O-O {[%emt 0:00:12]} 7. Be3 {[%emt 0:00:08]} Bxe3 {[%emt 0:01:38]} 8. fxe3 {[%emt 0:00:13]} Bg4 {[%emt 0:01:42]} 9. h3 {[%emt 0:00:32]} Bxf3 {[%emt 0:01:36]} 10. Qxf3 {[%emt 0:00:11]} Ne7 {[%emt 0:03:10]} 11. Nd5 {[%emt 0:00:41]} c6 {[%emt 0:00:18]} 12. Nxf6+ {[%emt 0:00:38]} gxf6 {[%emt 0:00:40]} 13. Qxf6 {[%emt 0:00:28]} Qe8 {[%emt 0:01:12]} 14. Qxd6 {[%emt 0:00:50]} Rd8 {[%emt 0:01:00]} 15. Qxe5 {[%emt 0:01:58]} Ng6 {[%emt 0:01:22]} 16. Qa5 {[%emt 0:01:03]} a6 {[%emt 0:01:56]} 17. Qb6 {[%emt 0:00:50]} Rb8 {[%emt 0:00:16]} 18. Rf2 {[%emt 0:00:36]} Qe5 {[%emt 0:00:23]} 19. Raf1 {[%emt 0:01:01]} Nh8 {[%emt 0:00:51]} 20. Qd4 {[%emt 0:00:53]} Rbe8 {[%emt 0:02:14]} 21. Qxe5 {[%emt 0:00:34]} Rxe5 {[%emt 0:00:13]} 22. Rf5 {[%emt 0:01:46]} Re7 {[%emt 0:00:30]} 23. Rg5+ {[%emt 0:00:36]} Ng6 {[%emt 0:00:29]} 24. b4 {[%emt 0:01:06]} h6 {[%emt 0:02:06]} 25. Rh5 {[%emt 0:00:30]} Kg7 {[%emt 0:01:34]} 26. Rhf5 {[%emt 0:01:00]} Ne5 {[%emt 0:01:00]} 27. a4 {[%emt 0:01:28]} Nxc4 {[%emt 0:00:23]} 28. dxc4 {[%emt 0:00:19]} Rxe4 {[%emt 0:03:33]} 29. Rc5 {[%emt 0:00:01]} b6 {[%emt 0:00:22]} 30. Rxc6 {[%emt 0:00:15]} Rb8 {[%emt 0:00:32]} 31. a5 {[%emt 0:00:30]} bxa5 {[%emt 0:00:30]} 32. bxa5 {[%emt 0:00:10]} Ra8 {[%emt 0:00:18]} 33. Rcf6 {[%emt 0:00:43]} Re7 {[%emt 0:01:17]} 34. c5 {[%emt 0:00:06]} Rc8 {[%emt 0:01:32]} 35. Rxa6 {[%emt 0:02:10]} Rxc5 {[%emt 0:00:04]} 36. Rc1 {[%emt 0:02:27]} Rxe3 {[%emt 0:00:47]} 37. Ra8 {[%emt 0:00:11]} Rcc3 {[%emt 0:00:20]} 38. a6 {[%emt 0:00:17]} Ra3 {[%emt 0:00:35]} 39. a7 {[%emt 0:00:00]} Rec3 {[%emt 0:01:08]} 40. Rd1 {[%emt 0:00:16]} Rxc2 {[%emt 0:00:15]} 41. Rd7 {[%emt 0:00:15]} Rca2 {[%emt 0:00:27]} 42. Kh2 {[%emt 0:00:20]} Kf6 {[%emt 0:00:02]} 43. Rh8 {[%emt 0:01:12]} Ke6 {[%emt 0:00:16]} 44. a8=Q {[%emt 0:02:39]} Rxa8 {[%emt 0:00:00]} 45. Rxa8 {[%emt 0:00:18]} Rxa8 {[%emt 0:00:10]} 46. Rd2 {[%emt 0:00:08]} 1/2-1/2